bitfinex/quotes_ETHUSD_20211001
["timestamp","ask_amount","ask_price","bid_price","bid_amount"]
[1633114029697,1.4532,3290.9,3290.8,0.012]
[1633114029895,8.84453919,3291.3,3290.8,0.012]
[1633114030094,0.96805454,3291.0,3290.8,0.012]
[1633114030293,5.52544454,3291.0,3290.8,0.012]
[1633114030594,4.73921355,3291.0,3290.8,0.012]
[1633114030993,4.73921355,3291.0,3290.6,0.012]
[1633114031593,1.294,3290.8,3290.6,0.012]
[1633114031794,13.600135,3290.7,3290.6,0.012]
[1633114032194,1.157817,3290.7,3290.6,0.012]
[1633114032595,1.86577814,3290.7,3290.6,0.012]
[1633114032794,7.71858814,3290.7,3290.6,0.012]
[1633114033197,9.21858814,3290.7,3290.6,0.012]
[1633114033393,13.45,3290.5,3290.4,3.592e-05]
[1633114033593,13.45,3290.5,3289.3,0.006]
[1633114033594,13.596,3290.5,3289.3,0.006]
[1633114033795,13.596,3290.5,3289.6,0.003]
[1633114033994,1.294,3290.1,3289.8,2.46]
[1633114034194,21.06529,3290.1,3289.8,2.46]
[1633114034396,21.06529,3290.1,3289.9,0.003]
[1633114034397,0.76858234,3290.0,3289.9,0.003]
[1633114034594,21.06529,3290.1,3289.9,0.003]
[1633114034595,0.146,3290.1,3289.9,0.003]
[1633114034795,0.146,3290.5,3289.9,0.10800822]
[1633114035198,4.55834,3290.4,3290.0,0.003]
[1633114035396,1.09454419,3290.3,3290.0,0.003]
[1633114035596,2.01863106,3290.3,3290.0,0.003]
[1633114035997,0.18162832,3290.2,3290.0,0.003]
[1633114036397,0.18162832,3290.2,3289.5,0.006]
[1633114036598,1.16620798,3289.8,3289.5,0.006]
[1633114036797,0.18162832,3290.2,3289.2,0.006]
[1633114037397,0.18162832,3290.2,3289.2,0.77990188]
[1633114037398,0.82836103,3289.8,3289.2,0.77990188]
[1633114037798,0.82836103,3289.8,3289.3,0.006]
[1633114038001,1.32389493,3290.2,3289.2,1.75485523]
[1633114038260,0.003,3290.0,3289.2,0.68590188]
[1633114038460,0.003,3290.0,3289.2,5.24409188]
[1633114039658,0.003,3290.0,3289.2,7.70409188]
[1633114040059,0.92836481,3289.7,3289.2,8.75905936]
[1633114040264,0.003,3290.0,3289.2,8.75905936]
[1633114040460,0.003,3290.0,3289.3,0.10512423]
[1633114041060,0.003,3290.0,3289.5,4.55788]
[1633114041264,0.97840005,3290.0,3289.3,0.10512423]
[1633114041463,0.97840005,3290.0,3289.2,4.20086936]
[1633114041664,0.18153074,3289.9,3289.2,4.20086936]
[1633114042464,1.67104294,3289.9,3289.2,4.20086936]
[1633114042666,0.94357943,3289.7,3289.2,4.20086936]
[1633114042868,0.94357943,3289.7,3289.2,2.46]
[1633114043265,1.67104294,3289.9,3289.5,4.55789]
[1633114043464,1.67104294,3289.9,3289.2,2.46]
[1633114044265,0.74259358,3289.8,3289.2,3.39688353]
[1633114044464,0.74259358,3289.8,3289.3,4.55813]
[1633114044864,1.67104294,3289.9,3289.3,5.56702715]
[1633114045469,1.294,3289.6,3289.0,0.003]
[1633114045665,0.004172,3289.4,3289.0,0.003]
[1633114045864,0.146,3289.6,3289.4,0.11036813]
[1633114047067,0.17622589,3289.5,3288.9,0.7101437]
[1633114047265,0.17622589,3289.5,3288.4,0.006]
[1633114047466,4.73546589,3289.5,3289.0,0.003]
[1633114047665,4.73546589,3289.5,3288.2,1.2694]
[1633114047866,7.78449108,3289.5,3288.5,0.003]
[1633114048069,7.78449108,3289.5,3288.3,0.006]
[1633114048070,0.146,3289.4,3288.3,0.006]
[1633114048265,0.7611543,3288.8,3288.3,0.003]
[1633114048465,0.7611543,3288.8,3288.2,0.9245434]
[1633114048668,0.7611543,3288.8,3288.3,0.003]
[1633114048867,3.18619,3289.1,3288.3,0.006]
[1633114049067,0.146,3288.7,3288.3,0.006]
[1633114049266,0.146,3288.7,3287.9,0.009]
[1633114049664,4.70651,3288.7,3287.9,0.009]
[1633114049865,0.75477676,3288.5,3287.9,0.009]
[1633114050269,3.79553676,3288.5,3287.9,0.009]
[1633114050468,0.75477676,3288.5,3287.9,0.009]
[1633114050868,0.75477676,3288.5,3288.0,0.98519044]
[1633114051268,0.146,3288.7,3288.1,0.006]
[1633114051667,3.18655,3288.7,3288.1,0.006]
[1633114051869,0.146,3288.7,3288.1,0.006]
[1633114052868,1.72226199,3288.9,3287.9,0.009]
[1633114053068,0.182,3288.8,3287.9,0.009]
[1633114053273,0.90149777,3288.7,3288.1,0.81637881]
[1633114053470,0.182,3288.6,3288.1,0.81637881]
[1633114053668,0.182,3288.6,3288.2,0.006]
[1633114054069,0.182,3288.6,3287.9,1.223335]
[1633114054269,0.182,3288.6,3287.9,5.783455]
[1633114054468,0.182,3288.6,3288.0,0.009]
[1633114055669,0.9837423,3288.5,3288.0,0.009]
[1633114055874,0.182,3288.4,3288.0,0.97593992]
[1633114056269,0.182,3288.4,3288.1,0.006]
[1633114057270,0.182,3288.4,3288.2,0.11081581]
[1633114057670,0.182,3288.4,3288.3,0.006]
[1633114058273,0.182,3288.8,3288.4,13.45]
[1633114058477,1.5,3288.9,3288.7,0.009254]
[1633114058872,1.5,3288.9,3288.8,8.053]
[1633114059071,1.5,3288.9,3288.8,1.08921045]
[1633114059273,1.5,3288.9,3288.8,0.003]
[1633114059874,1.5,3288.9,3288.0,0.009]
[1633114060075,1.5,3288.9,3288.4,1.30365]
[1633114060274,1.5,3288.9,3288.5,0.182]
[1633114060474,1.5,3288.9,3288.6,5.67205]
[1633114060673,1.5,3288.9,3288.8,1.0896]
[1633114060872,1.5,3288.9,3288.8,13.2716]
[1633114061078,1.5,3288.9,3288.8,10.30163096]
[1633114061273,1.5,3288.9,3288.8,1.479]
[1633114062676,1.5,3288.9,3288.8,1.5896168]
[1633114064277,1.5,3288.9,3288.8,0.2956168]
[1633114064477,1.5,3288.9,3288.8,0.185]
[1633114064676,1.67606747,3288.9,3288.8,0.185]
[1633114067079,1.67606747,3288.9,3288.8,1.17071886]
[1633114067279,1.67606747,3288.9,3288.8,0.185]
[1633114067478,2.5115187,3288.9,3288.8,0.185]
[1633114068079,1.5,3288.9,3288.8,0.2956168]
[1633114068888,1.5,3288.9,3288.8,0.1136168]
[1633114069079,2.4677037,3288.9,3288.8,0.1136168]
[1633114069485,3.7617037,3288.9,3288.8,0.1136168]
[1633114070081,3.7617037,3288.9,3288.8,0.003]
[1633114070280,4.65647417,3288.9,3288.8,0.003]
[1633114070487,4.56003,3288.8,3288.0,0.009]
[1633114070681,4.56003,3288.8,3287.9,4.569]
[1633114070884,1.294,3288.4,3287.9,0.009]
[1633114071081,1.294,3288.4,3288.0,0.009]
[1633114071082,0.182,3288.3,3288.0,0.009]
[1633114071282,0.94241967,3288.2,3288.0,0.009]
[1633114071485,4.56152,3288.1,3287.9,0.009]
[1633114071683,14.32427704,3288.0,3287.9,0.009]
[1633114071882,4.565839,3288.1,3287.9,0.009]
[1633114072087,0.004319,3288.1,3287.9,0.009]
[1633114072682,0.004319,3288.1,3287.2,0.003]
[1633114072683,14.644,3288.0,3287.2,0.003]
[1633114072886,14.644,3288.0,3287.5,0.003]
[1633114072887,0.182,3287.9,3287.5,0.003]
[1633114073082,0.182,3287.9,3287.1,0.003]
[1633114073083,3.04143,3287.8,3287.1,0.003]
[1633114073282,0.182,3287.7,3286.8,0.006]
[1633114073682,0.182,3287.7,3287.2,0.11108128]
[1633114073882,1.11595616,3287.7,3287.4,2.46]
[1633114074086,0.182,3287.7,3287.4,2.46]
[1633114074282,0.182,3287.7,3287.5,0.003]
[1633114075083,0.182,3287.7,3287.3,0.003]
[1633114076288,0.182,3287.7,3287.3,4.56409]
[1633114076689,0.182,3287.7,3287.4,0.003]
[1633114077285,0.182,3287.7,3287.3,4.51409]
[1633114078086,0.182,3287.7,3287.2,0.11108128]
[1633114078687,1.06970263,3287.6,3287.2,0.11108128]
[1633114078887,0.182,3287.5,3287.2,0.11108128]
[1633114079087,0.78759717,3287.3,3287.2,0.11108128]
[1633114079292,0.182,3287.3,3287.2,0.11108128]
[1633114079689,0.082,3287.3,3287.2,0.11108128]
[1633114080687,0.25767655,3287.3,3287.0,2.46]
[1633114081086,0.25767655,3287.3,3287.0,2.463]
[1633114082288,0.17567655,3287.3,3287.1,1.294]
[1633114082492,0.003,3288.0,3287.1,1.294]
[1633114082493,0.003,3288.0,3287.3,0.082]
[1633114082688,0.003,3288.0,3287.9,13.462597]
[1633114082888,0.003,3288.0,3287.9,0.194597]
[1633114083491,0.003,3288.0,3287.9,10.81585401]
[1633114083688,0.003,3288.0,3287.9,11.92465401]
[1633114083890,0.003,3288.0,3287.9,12.10985401]
[1633114084090,1.503,3288.0,3287.9,9.51433112]
[1633114084288,1.503,3288.0,3287.9,7.90985401]
[1633114084689,1.20463781,3288.0,3287.9,17.50910763]
[1633114084891,0.003,3288.5,3288.0,1.28663781]
[1633114085089,0.003,3288.5,3288.4,0.9661435]
[1633114085490,0.003,3288.5,3288.0,1.46863781]
[1633114085688,0.003,3288.5,3288.0,4.50802781]
[1633114085891,0.003,3288.5,3288.4,5.31014987]
[1633114086490,0.003,3288.5,3288.4,7.40654499]
[1633114086695,0.003,3288.5,3288.4,6.28994499]
[1633114086892,0.003,3288.5,3288.4,7.76594499]
[1633114087491,13.3698,3289.8,3288.5,12.2]
[1633114087691,13.3698,3289.8,3289.1,1.02233457]
[1633114087896,1.03158294,3290.0,3289.1,4.55792]
[1633114088493,0.81941205,3289.7,3289.1,5.56220477]
[1633114088692,0.81941205,3289.7,3289.1,3.55792]
[1633114088892,0.81941205,3289.7,3289.0,6.08022]
[1633114089156,0.81941205,3289.7,3289.0,0.003]
[1633114089495,0.81941205,3289.7,3288.6,2.46]
[1633114089698,0.83257726,3288.8,3288.6,2.463]
[1633114089894,0.83257726,3288.8,3288.7,0.003]
[1633114090095,4.55942,3289.6,3288.7,0.003]
[1633114090493,4.55942,3289.6,3288.7,0.20148824]
[1633114090892,6.54463083,3289.6,3288.8,0.003]
[1633114091093,0.86628327,3289.1,3288.8,0.003]
[1633114092695,0.08825436,3289.0,3288.8,0.003]
[1633114092893,0.08825436,3289.0,3288.7,0.003]
[1633114093695,1.58825436,3289.0,3288.7,0.003]
[1633114094295,2.55406174,3289.0,3288.7,0.003]
[1633114094498,1.58825436,3289.0,3288.7,0.003]
[1633114094696,6.14830436,3289.0,3288.7,0.003]
[1633114095157,1.58825436,3289.0,3288.7,0.003]
[1633114095500,1.08862668,3288.9,3288.7,0.003]
[1633114095697,1.08862668,3288.9,3288.1,0.006]
[1633114095896,1.08862668,3288.9,3288.8,0.19843849]
[1633114096097,5.64881668,3288.9,3288.8,0.19843849]
[1633114096295,10.14881668,3288.9,3288.8,0.20143849]
[1633114096495,23.52881668,3288.9,3288.8,0.20143849]
[1633114096696,5.64881668,3288.9,3288.8,0.20143849]
[1633114096897,7.84028028,3288.9,3288.8,0.20143849]
[1633114098095,7.92851033,3288.9,3288.8,0.003]
[1633114098499,7.92851033,3288.9,3288.1,0.006]
[1633114098697,0.97908019,3288.3,3288.1,0.006]
[1633114099900,0.08823005,3288.9,3288.1,0.006]
[1633114100899,0.74241057,3288.7,3288.1,1.92373884]
[1633114101301,0.74241057,3288.7,3288.1,1.77373884]
[1633114101502,0.74241057,3288.7,3288.2,0.19857116]
[1633114102299,1.685,3289.0,3288.2,0.19857116]
[1633114102900,0.185,3289.0,3288.2,0.19857116]
[1633114103104,0.003,3289.0,3288.2,0.19857116]
[1633114103301,0.003,3289.0,3288.9,0.81654749]
[1633114103501,0.003,3289.0,3288.6,0.93906309]
[1633114103701,0.0911813,3289.0,3288.5,1.4423]
[1633114103903,0.0911813,3289.0,3288.1,9.11858]
[1633114104166,0.0911813,3289.0,3288.2,0.9367]
[1633114104304,0.0911813,3289.0,3288.2,3.97595]
[1633114104508,0.0911813,3289.0,3288.4,0.97530055]
[1633114104707,0.0911813,3289.0,3288.5,1.14548602]
[1633114106904,0.003,3289.0,3288.6,0.19847165]
[1633114107305,0.003,3289.0,3288.7,4.55893]
[1633114107506,0.003,3289.0,3288.7,1.6045]
[1633114107716,0.003,3289.0,3288.8,2.0901]
[1633114108111,0.003,3289.0,3288.8,0.6118]
[1633114108506,0.003,3289.0,3288.8,6.68974]
[1633114108906,0.003,3289.0,3288.6,0.19847165]
[1633114109108,0.003,3289.0,3287.9,0.21512465]
[1633114109109,0.09125478,3289.0,3288.1,1.4723]
[1633114109306,0.09125478,3289.0,3287.9,0.189991]
[1633114109507,0.09125478,3289.0,3288.2,6.07895]
[1633114109706,0.72039832,3288.7,3288.2,6.07895]
[1633114110309,0.09125478,3289.0,3288.2,6.07895]
[1633114110710,0.09125478,3289.0,3288.2,7.26445]
[1633114110910,0.09125478,3289.0,3288.5,4.55937]
[1633114111309,0.88306132,3289.0,3288.5,4.55937]
[1633114111709,0.88306132,3289.0,3288.6,0.95821673]
[1633114112011,0.88306132,3289.0,3288.2,7.26445]
[1633114112411,0.79480654,3289.0,3288.7,0.19845507]
[1633114113212,0.79480654,3289.0,3288.7,4.75767507]
[1633114114614,0.88304923,3289.0,3288.7,4.55922]
[1633114115413,0.88304923,3289.0,3288.5,4.55942]
[1633114117215,1.294,3288.8,3288.0,1.28963781]
[1633114117414,3.04048,3288.6,3288.0,1.28963781]
[1633114117613,1.25622985,3288.9,3288.0,1.28963781]
[1633114118013,1.25622985,3288.9,3288.1,0.19860433]
[1633114118014,0.82414088,3288.4,3288.1,0.19860433]
[1633114120018,0.82414088,3288.4,3288.0,1.28963781]
[1633114120217,0.08808391,3288.3,3288.0,1.28963781]
[1633114121519,0.08808391,3288.3,3288.0,5.84973781]
[1633114122375,0.93352067,3288.2,3288.0,5.84973781]
[1633114122978,0.08808391,3288.3,3288.0,5.84973781]
[1633114123383,7.60054,3288.8,3288.1,0.19870385]
[1633114123578,3.0403,3288.8,3288.1,0.19870385]
[1633114123979,0.73403235,3288.7,3288.1,0.19870385]
[1633114124180,11.3624638,3288.2,3288.1,0.19870385]
[1633114124382,0.9124638,3288.2,3288.1,0.19870385]
[1633114125181,2.03161093,3288.2,3288.1,0.19870385]
[1633114125381,0.9124638,3288.2,3288.1,0.19870385]
[1633114125583,5.56153339,3288.2,3288.0,1.28963781]
[1633114125989,1.00052339,3288.2,3288.0,1.28963781]
[1633114128594,2.1992269,3288.2,3288.0,1.28963781]
[1633114128786,0.9124638,3288.2,3288.0,1.28963781]
[1633114128987,0.9124638,3288.2,3288.1,0.19870385]
[1633114130188,1.91549691,3288.2,3288.1,0.19870385]
[1633114130795,0.9124638,3288.2,3288.1,0.19870385]
[1633114131194,0.9124638,3288.2,3288.0,1.28963781]
[1633114131392,1.00052353,3288.2,3288.0,1.28963781]
[1633114131592,5.56158353,3288.2,3288.0,1.28963781]
[1633114131991,0.98306337,3288.1,3288.0,1.28963781]
[1633114132598,2.26657557,3288.1,3288.0,1.28963781]
[1633114133393,0.97257557,3288.1,3288.0,1.28963781]
[1633114133797,2.26657557,3288.1,3288.0,1.28963781]
[1633114133993,0.97257557,3288.1,3288.0,1.28963781]
[1633114134199,8.60308213,3288.2,3288.0,1.28963781]
[1633114134394,8.5150224,3288.2,3288.0,1.48835825]
[1633114135595,0.9124638,3288.2,3288.0,1.48835825]
[1633114136195,5.4736338,3288.2,3288.0,1.48835825]
[1633114136597,5.4736338,3288.2,3288.0,1.28963781]
[1633114136795,0.08804765,3288.1,3288.0,1.28963781]
[1633114136994,1.38204765,3288.1,3288.0,1.28963781]
[1633114137195,0.09275665,3288.1,3288.0,1.28963781]
[1633114139795,0.004709,3288.1,3288.0,1.28963781]
[1633114139995,0.004709,3288.1,3288.0,1.48835825]
[1633114140395,14.02279176,3288.0,3287.3,0.003]
[1633114140596,0.182,3287.9,3287.3,0.003]
[1633114140797,5.71678004,3287.6,3287.3,0.003]
[1633114140995,0.82261653,3287.5,3287.3,0.003]
[1633114141996,4.56259,3287.4,3287.3,0.003]
[1633114144203,1.00986553,3287.5,3287.3,0.003]
[1633114144396,5.57200553,3287.5,3287.3,0.003]
[1633114145399,5.38475653,3287.5,3287.4,0.09955934]
[1633114145798,5.38475653,3287.5,3287.4,0.10255934]
[1633114147599,5.38475653,3287.5,3287.4,0.003]
[1633114147799,5.5720179,3287.5,3287.4,0.003]
[1633114148000,5.5720179,3287.5,3286.8,0.006]
[1633114148200,3.04168,3287.3,3286.8,0.006]
[1633114148399,3.04168,3287.3,3286.3,0.009]
[1633114148400,7.17483686,3287.3,3286.3,0.009]
[1633114148599,7.17483686,3287.3,3286.6,0.006]
[1633114148999,0.74494234,3286.7,3286.6,0.006]
[1633114149404,0.74494234,3286.7,3286.3,0.009]
[1633114149405,1.84533018,3286.7,3286.3,0.009]
[1633114149599,0.74494234,3286.7,3286.2,0.009]
[1633114151204,9.1264444,3286.9,3286.3,0.09987475]
[1633114151604,9.1264444,3286.9,3286.4,0.009]
[1633114152203,3.0421,3286.9,3286.4,0.009]
[1633114153207,0.18706573,3286.8,3286.4,0.009]
[1633114153405,0.18706573,3286.8,3286.2,0.009]
[1633114153605,0.18706573,3286.8,3286.3,0.79792156]
[1633114153806,0.18706573,3286.8,3286.3,2.0082175]
[1633114154006,0.18706573,3286.8,3286.4,0.009]
[1633114155208,0.18706573,3286.8,3286.4,0.86779376]
[1633114155609,0.18706573,3286.8,3286.5,0.009]
[1633114156012,0.18706573,3286.8,3286.4,4.57152]
[1633114156211,0.18706573,3286.8,3286.4,0.009]
[1633114156411,0.18706573,3286.8,3286.5,0.009]
[1633114156610,0.72247434,3287.0,3286.5,0.10882493]
[1633114157010,4.56317,3286.8,3286.6,0.006]
[1633114157611,10.59929157,3286.7,3286.6,0.006]
[1633114157810,1.04929157,3286.7,3286.6,0.006]
[1633114158010,9.7,3286.6,3286.5,0.00882493]
[1633114158211,9.7,3286.6,3285.6,4.56345]
[1633114158212,4.56375,3286.6,3285.6,4.56345]
[1633114158412,4.56375,3286.6,3285.5,0.003]
[1633114158613,0.003,3286.5,3285.5,0.003]
[1633114158815,0.97392628,3286.2,3285.6,0.96701198]
[1633114159014,0.97392628,3286.2,3285.5,0.003]
[1633114159411,4.01664628,3286.2,3285.5,0.003]
[1633114159614,0.003,3286.5,3285.9,0.93429743]
[1633114159816,0.003,3286.5,3285.5,0.003]
[1633114160613,0.003,3286.5,3286.1,0.7196]
[1633114160814,0.003,3286.5,3286.4,5.95]
[1633114161012,0.003,3286.5,3286.3,0.6355]
[1633114161812,0.003,3286.5,3286.4,4.56219]
[1633114162416,0.003,3286.5,3286.4,4.61218549]
[1633114164020,0.003,3286.5,3286.4,4.56219]
[1633114164214,0.23991728,3286.5,3286.4,4.56219]
[1633114165415,0.23991728,3286.5,3286.3,6.08291]
[1633114165616,0.23991728,3286.5,3286.0,2.02403862]
[1633114165816,0.23991728,3286.5,3285.9,1.10190654]
[1633114165817,0.79966934,3286.4,3285.9,1.10190654]
[1633114166016,0.23991728,3286.5,3285.9,1.10190654]
[1633114166417,0.23991728,3286.5,3286.0,6.08339]
[1633114167221,0.23991728,3286.5,3286.4,0.87794479]
[1633114167816,0.003,3286.5,3286.4,0.87794479]
[1633114168017,0.003,3286.5,3286.4,0.92792368]
[1633114168416,0.003,3286.5,3286.4,1.73184786]
[1633114168817,0.003,3286.5,3286.4,0.92792368]
[1633114169017,0.86507681,3287.0,3286.4,0.92792368]
[1633114169219,0.86507681,3287.0,3286.5,4.56532]
[1633114169418,0.86507681,3287.0,3286.5,0.003]
[1633114169818,0.23699086,3286.9,3286.5,0.003]
[1633114170882,0.23699086,3286.9,3286.7,1.294]
[1633114171086,0.003,3287.5,3286.8,2.77706059]
[1633114171286,0.003,3287.5,3286.8,2.95906059]
[1633114171482,0.003,3287.5,3286.8,4.16816059]
[1633114171882,0.003,3287.5,3287.4,5.69274249]
[1633114172483,0.003,3287.5,3287.4,6.84224249]
[1633114173283,0.003,3287.5,3287.4,8.13624249]
[1633114174886,0.003,3287.5,3287.4,7.00387]
[1633114175087,0.12167911,3287.5,3287.4,5.85437]
[1633114175890,0.12167911,3287.5,3287.4,6.7848063]
[1633114176691,0.12167911,3287.5,3287.4,5.4908063]
[1633114176888,0.12167911,3287.5,3287.4,4.56037]
[1633114177088,0.12167911,3287.5,3287.3,6.08049]
[1633114177489,0.1111913,3287.5,3287.3,6.08049]
[1633114178492,0.1111913,3287.5,3287.4,8.77695385]
[1633114178690,0.1111913,3287.5,3287.3,6.08049]
[1633114178895,0.007991,3287.8,3287.0,0.185]
[1633114179092,0.007991,3287.8,3287.4,0.17188621]
[1633114179693,0.80172548,3287.7,3287.4,0.17188621]
[1633114180490,0.80172548,3287.7,3287.1,0.92284819]
[1633114180795,0.11494758,3287.6,3286.9,0.003]
[1633114181190,0.11494758,3287.6,3287.0,1.14045027]
[1633114181591,0.11494758,3287.6,3287.0,1.14345027]
[1633114182204,0.11494758,3287.6,3287.0,0.003]
[1633114182589,0.11494758,3287.6,3286.8,0.003]
[1633114182790,0.11494758,3287.6,3286.7,0.003]
[1633114183193,0.11494758,3287.6,3287.1,0.90298835]
[1633114184394,0.80172548,3287.7,3286.9,4.56465]
[1633114184595,0.80172548,3287.7,3287.2,0.1719194]
[1633114185996,0.80172548,3287.7,3287.0,0.003]
[1633114186193,0.11492325,3287.6,3287.0,0.003]
[1633114187993,0.11492325,3287.6,3287.0,4.56462]
[1633114188794,0.11492325,3287.6,3287.5,0.92352321]
[1633114189795,0.7176726,3287.8,3287.5,0.92352321]
[1633114189995,0.7176726,3287.8,3287.5,1.09537623]
[1633114190400,0.57579176,3288.0,3287.5,1.09537623]
[1633114190798,0.57579176,3288.0,3287.9,7.604097]
[1633114191103,0.57579176,3288.0,3287.9,3.02613189]
[1633114191299,0.57579176,3288.0,3287.9,0.182]
[1633114191698,0.69083747,3288.0,3287.9,0.182]
[1633114192297,0.69083747,3288.0,3287.9,4.74142]
[1633114192697,0.69083747,3288.0,3287.5,1.3518]
[1633114192898,0.69083747,3288.0,3287.9,1.5]
[1633114193099,0.69083747,3288.0,3287.1,3.14656361]
[1633114193298,0.69083747,3288.0,3287.1,0.44741723]
[1633114193498,0.69083747,3288.0,3287.2,6.08094]
[1633114193898,0.69083747,3288.0,3287.5,1.5]
[1633114194501,0.69083747,3288.0,3287.5,6.06071]
[1633114195302,0.57579176,3288.0,3287.5,6.06071]
[1633114195501,0.57579176,3288.0,3287.6,0.17178664]
[1633114195702,0.57579176,3288.0,3287.8,4.56029]
[1633114198105,0.57579176,3288.0,3287.6,6.25216664]
[1633114198704,0.57579176,3288.0,3287.8,1.5]
[1633114201306,0.57579176,3288.0,3287.8,6.06048]
[1633114202509,0.57579176,3288.0,3287.9,0.85328565]
[1633114202706,0.57579176,3288.0,3287.9,1.96575204]
[1633114204507,0.57579176,3288.0,3287.8,6.06048]
[1633114205509,0.57579176,3288.0,3287.8,7.03145514]
[1633114205709,0.56812409,3288.0,3287.8,7.03145514]
[1633114206719,0.56812409,3288.0,3287.9,0.86752251]
[1633114208914,0.56812409,3288.0,3287.8,7.03145514]
[1633114210314,0.003,3288.5,3288.0,0.56512409]
[1633114210513,0.003,3288.5,3288.1,1.32970677]
[1633114210714,0.003,3288.5,3288.2,2.35687523]
[1633114210914,0.003,3288.5,3288.3,0.8500223]
[1633114211113,0.003,3288.5,3288.4,4.559]
[1633114211314,0.003,3288.5,3288.2,1.5]
[1633114212020,0.74898991,3288.5,3288.2,1.5]
[1633114212215,0.003,3288.5,3288.0,0.56512409]
[1633114212418,0.003,3288.5,3288.2,4.55995]
[1633114212618,0.003,3288.5,3288.0,0.56512409]
[1633114213416,0.003,3288.5,3288.0,6.64479409]
[1633114214015,0.003,3288.5,3288.3,0.85746248]
[1633114214419,1.503,3288.5,3288.4,6.05865]
[1633114218620,2.38960832,3288.5,3288.4,6.05865]
[1633114218820,1.503,3288.5,3288.4,6.05865]
[1633114219824,1.503,3288.5,3288.4,7.03217471]
[1633114220621,1.503,3288.5,3288.4,6.05865]
[1633114221621,1.503,3288.5,3288.4,6.8279638]
[1633114222222,1.503,3288.5,3288.4,6.05865]
[1633114222623,1.4925122,3288.5,3288.4,6.05865]
[1633114225890,0.56512409,3288.5,3288.4,6.05865]
[1633114226089,0.56512409,3288.5,3288.4,6.23020439]
[1633114226689,0.68029297,3288.5,3288.4,6.05865]
[1633114228092,1.97429297,3288.5,3288.0,0.003]
[1633114228291,13.461319,3288.1,3288.0,0.003]
[1633114228489,0.011319,3288.1,3287.6,0.003]
[1633114228890,0.011319,3288.1,3287.5,0.006]
[1633114229090,0.94420033,3287.7,3287.5,0.006]
[1633114229290,0.011319,3288.1,3287.5,0.006]
[1633114229291,0.182,3288.0,3287.5,0.006]
[1633114229692,0.182,3288.0,3287.7,1.5]
[1633114230094,14.744,3287.9,3287.8,0.003]
[1633114230301,14.744,3287.9,3287.5,0.003]
[1633114230302,13.45,3287.8,3287.5,0.003]
[1633114230496,11.209114,3287.6,3287.5,0.003]
[1633114230695,0.191114,3287.6,3287.5,0.003]
[1633114231295,2.31460957,3287.6,3287.5,0.003]
[1633114231694,2.31460957,3287.6,3287.5,0.17485302]
[1633114232096,2.31460957,3287.6,3287.5,0.003]
[1633114232295,3.36564862,3287.6,3287.5,0.003]
[1633114232495,2.42955846,3287.6,3287.5,0.003]
[1633114233495,1.13555846,3287.6,3287.5,0.003]
[1633114233898,2.42955846,3287.6,3287.5,0.003]
[1633114234203,2.42955846,3287.6,3286.6,0.003]
[1633114234204,0.90456093,3287.1,3286.6,0.003]
[1633114234400,0.90456093,3287.1,3287.0,0.003]
[1633114234800,0.90456093,3287.1,3287.0,1.5]
[1633114234998,3.94608093,3287.1,3287.0,1.5]
[1633114235198,3.94608093,3287.1,3287.0,1.503]
[1633114235798,5.44608093,3287.1,3287.0,1.503]
[1633114236401,5.44608093,3287.1,3287.0,0.003]
[1633114236804,5.44608093,3287.1,3286.1,0.006]
[1633114237003,1.5,3287.1,3286.2,0.006]
[1633114237206,1.5,3287.1,3287.0,0.17201899]
[1633114237601,1.5,3287.1,3287.0,0.17501899]
[1633114237801,1.61483892,3287.1,3287.0,0.17501899]
[1633114238403,1.61483892,3287.1,3287.0,1.04657324]
[1633114239000,1.61483892,3287.1,3287.0,0.17501899]
[1633114239201,1.61483892,3287.1,3287.0,4.73625899]
[1633114240200,1.61483892,3287.1,3287.0,5.59004061]
[1633114241001,1.61483892,3287.1,3287.0,4.73625899]
[1633114242003,1.61483892,3287.1,3287.0,0.17501899]
[1633114242605,1.5,3287.1,3287.0,0.17501899]
[1633114243211,1.61483906,3287.1,3287.0,0.003]
[1633114243606,1.61483906,3287.1,3286.8,0.003]
[1633114244008,1.61483906,3287.1,3286.5,0.003]
[1633114244009,0.09589243,3286.7,3286.5,0.003]
[1633114244209,10.195921,3286.6,3286.5,0.003]
[1633114244405,10.195921,3286.6,3286.1,0.003]
[1633114244606,1.12124726,3286.4,3286.1,0.003]
[1633114244806,0.182,3286.3,3286.1,0.003]
[1633114245006,7.45858559,3286.2,3286.1,0.003]
[1633114245207,1.00858559,3286.2,3286.1,0.003]
[1633114245813,1.00858559,3286.2,3285.4,0.009]
[1633114246006,1.00858559,3286.2,3285.3,0.009]
[1633114246208,1.00858559,3286.2,3285.8,0.99589861]
[1633114246607,1.00858559,3286.2,3285.9,0.006]
[1633114247007,1.00858559,3286.2,3285.5,0.009]
[1633114247207,1.294,3285.9,3285.5,0.009]
[1633114247411,0.190383,3286.1,3284.5,2.86626619]
[1633114247412,13.4,3285.5,3284.5,2.86626619]
[1633114247608,1.07729375,3285.0,3284.5,0.003]
[1633114247808,0.182,3284.9,3284.5,0.003]
[1633114248007,0.182,3284.9,3284.2,1.04444415]
[1633114248008,0.99708905,3284.8,3284.3,0.003]
[1633114248209,0.99708905,3284.8,3284.6,0.17273325]
[1633114248414,0.182,3284.9,3284.6,0.17273325]
[1633114248608,0.182,3284.9,3284.5,1.503]
[1633114248811,0.11426369,3284.8,3284.5,1.503]
[1633114249009,0.11426369,3284.8,3284.7,0.92873536]
[1633114249209,0.11426369,3284.8,3284.5,1.503]
[1633114250611,0.11426369,3284.8,3284.6,0.74834698]